fUSD/lending_fUSD_20240210
["ID","MTS","AMOUNT","RATE_DAILY","PERIOD"]
[313709636,1707600681272,-500.0,0.00039452,30]
[313709637,1707600681282,-500.0,0.00039452,30]
[313709638,1707600681292,-500.0,0.00039452,30]
[313709639,1707600681302,-336.4,0.00039452,30]
[313709640,1707600681315,-500.0,0.00039452,30]
[313709641,1707600681325,-500.66,0.00039452,30]
[313709642,1707600681337,-500.0,0.00039452,30]
[313709643,1707600681348,-814.81,0.00039452,2]
[313709644,1707600681358,-500.0,0.00039452,30]
[313709645,1707600681368,-576.7759094,0.00039452,30]
[313709646,1707600681378,-500.0,0.00039452,30]
[313709647,1707600681387,-422.96555486,0.00039452,30]
[313709648,1707600681397,-621.57,0.00039452,30]
[313709649,1707600681577,-567.32,0.00039452,30]
[313709650,1707600681587,-500.0,0.00039452,30]
[313709651,1707600681597,-500.0,0.00039452,30]
[313709652,1707600681607,-500.0,0.00039452,30]
[313709653,1707600681617,-745.07,0.00039452,30]
[313709654,1707600681626,-500.0,0.00039452,30]
[313709655,1707600681636,-522.8,0.00039452,30]
[313709656,1707600681645,-500.0,0.00039452,30]
[313709657,1707600681655,-519.61483035,0.00039452,30]
[313709658,1707600681664,-500.0,0.00039452,30]
[313709659,1707600681673,-500.0,0.00039452,30]
[313709660,1707600681682,-868.65,0.00039452,30]
[313709661,1707600681692,-643.45,0.00039452,30]
[313709662,1707600681701,-373.93971798,0.00039452,30]
[313709663,1707600681710,-612.95,0.00039452,30]
[313709664,1707600681720,-506.8,0.00039452,30]
[313709665,1707600681728,-500.0,0.00039452,30]
[313709666,1707600681738,-315.12322035,0.00039452,30]
[313709667,1707600681747,-500.0,0.00039452,30]
[313709668,1707600681758,-500.0,0.00039452,30]
[313709669,1707600681767,-500.0,0.00039452,30]
[313709670,1707600681776,-1056.57,0.00039452,30]
[313709671,1707600681785,-500.0,0.00039452,30]
[313709672,1707600681795,-706.37,0.00039452,30]
[313709673,1707600681804,-500.0,0.00039452,30]
[313709674,1707600681815,-529.24,0.00039452,30]
[313709675,1707600681824,-500.0,0.00039452,30]
[313709676,1707600681834,-500.0,0.00039452,30]
[313709677,1707600681844,-500.0,0.00039452,30]
[313709678,1707600681854,-502.19,0.00039452,30]
[313709679,1707600681863,-500.0,0.00039452,30]
[313709680,1707600681872,-500.0,0.00039452,30]
[313709681,1707600681881,-500.0,0.00039452,30]
[313709682,1707600681890,-500.0,0.00039452,30]
[313709683,1707600681911,-706.86,0.00039452,30]
[313709684,1707600681921,-500.0,0.00039452,30]
[313709685,1707600681931,-541.66,0.00039452,30]
[313709686,1707600681941,-515.6,0.00039452,30]
[313709687,1707600681951,-500.0,0.00039452,30]
[313709688,1707600681961,-500.0,0.00039452,30]
[313709689,1707600681970,-295.76,0.00039452,30]
[313709690,1707600681980,-500.0,0.00039452,30]
[313709691,1707600681990,-1115.3,0.00039452,30]
[313709692,1707600681999,-500.0,0.00039452,30]
[313709693,1707600682009,-503.68,0.00039452,30]
[313709694,1707600682018,-500.0,0.00039452,30]
[313709695,1707600682028,-1282.41,0.00039452,30]
[313709696,1707600682037,-591.92,0.00039452,30]
[313709697,1707600682047,-500.0,0.00039452,30]
[313709698,1707600682056,-500.0,0.00039452,30]
[313709699,1707600682067,-219.71212788,0.00039452,30]
[313709700,1707600682076,-500.0,0.00039452,30]
[313709701,1707600682085,-500.0,0.00039452,30]
[313709702,1707600682095,-249.84,0.00039452,30]
[313709703,1707600682104,-500.0,0.00039452,30]
[313709704,1707600682113,-500.0,0.00039452,30]
[313709705,1707600682123,-629.6848109,0.00039452,30]
[313709706,1707600682133,-500.0,0.00039452,30]
[313709707,1707600682142,-500.0,0.00039452,30]
[313709708,1707600682152,-500.0,0.00039452,30]
[313709709,1707600682161,-500.0,0.00039452,30]
[313709710,1707600682171,-500.0,0.00039452,30]
[313709711,1707600682181,-500.0,0.00039452,30]
[313709712,1707600682191,-500.0,0.00039452,30]
[313709713,1707600682201,-500.0,0.00039452,30]
[313709714,1707600682211,-754.78,0.00039452,30]
[313709715,1707600682221,-500.0,0.00039452,30]
[313709716,1707600682231,-261.18,0.00039452,30]
[313709717,1707600682241,-500.0,0.00039452,30]
[313709718,1707600682251,-500.0,0.00039452,30]
[313709719,1707600682262,-527.18,0.00039452,30]
[313709720,1707600682273,-500.0,0.00039452,30]
[313709721,1707600682283,-250.0,0.00039452,30]
[313709722,1707600682293,-500.0,0.00039452,30]
[313709723,1707600682303,-500.0,0.00039452,30]
[313709724,1707600682313,-500.0,0.00039452,30]
[313709725,1707600682323,-500.0,0.00039452,30]
[313709726,1707600682333,-500.0,0.00039452,30]
[313709727,1707600682344,-500.0,0.00039452,30]
[313709728,1707600682354,-500.0,0.00039452,30]
[313709729,1707600682364,-500.0,0.00039452,30]
[313709730,1707600682374,-500.0,0.00039452,30]
[313709731,1707600682385,-510.48,0.00039452,30]
[313709732,1707600682394,-500.0,0.00039452,30]
[313709733,1707600682404,-500.0,0.00039452,30]
[313709734,1707600682414,-500.0,0.00039452,30]
[313709735,1707600682424,-500.0,0.00039452,30]
[313709736,1707600682434,-500.0,0.00039452,30]
[313709737,1707600682444,-500.0,0.00039452,30]
[313709738,1707600682454,-500.0,0.00039452,30]
[313709739,1707600682464,-500.0,0.00039452,30]
[313709740,1707600682473,-1004.34,0.00039452,30]
[313709741,1707600682483,-500.0,0.00039452,30]
[313709742,1707600682493,-500.0,0.00039452,30]
[313709743,1707600682502,-500.0,0.00039452,30]
[313709744,1707600682512,-500.0,0.00039452,30]
[313709745,1707600682522,-500.0,0.00039452,30]
[313709746,1707600682532,-974.28,0.00039452,30]
[313709747,1707600682542,-1028.04,0.00039452,30]
[313709748,1707600682551,-500.0,0.00039452,30]
[313709749,1707600682560,-500.0,0.00039452,30]
[313709750,1707600682570,-500.0,0.00039452,30]
[313709751,1707600682579,-1354.3,0.00039452,30]
[313709752,1707600682589,-1248.46,0.00039452,30]
[313709753,1707600682598,-500.0,0.00039452,30]
[313709754,1707600682608,-500.0,0.00039452,30]
[313709755,1707600682617,-500.0,0.00039452,30]
[313709756,1707600682626,-500.0,0.00039452,30]
[313709757,1707600682635,-500.0,0.00039452,30]
[313709758,1707600682645,-611.05666787,0.00039452,30]
[313709759,1707600682654,-2698.96,0.00039452,30]
[313709760,1707600682664,-500.0,0.00039452,30]
[313709761,1707600682673,-500.0,0.00039452,30]
[313709762,1707600682682,-500.0,0.00039452,30]
[313709763,1707600682692,-773.31,0.00039452,30]
[313709764,1707600682701,-500.0,0.00039452,30]
[313709765,1707600682710,-1020.08,0.00039452,30]
[313709766,1707600682719,-1468.67,0.00039452,30]
[313709767,1707600682729,-500.0,0.00039452,30]
[313709768,1707600682738,-500.0,0.00039452,30]
[313709769,1707600682748,-500.0,0.00039452,30]
[313709770,1707600682757,-1648.08,0.00039452,30]
[313709771,1707600682766,-500.0,0.00039452,30]
[313709772,1707600682775,-500.0,0.00039452,30]
[313709773,1707600682785,-500.0,0.00039452,30]
[313709774,1707600682794,-1006.27,0.00039452,30]
[313709775,1707600682804,-707.87,0.00039452,30]
[313709776,1707600682813,-500.0,0.00039452,30]
[313709777,1707600682823,-835.37,0.00039452,30]
[313709778,1707600682832,-500.0,0.00039452,30]
[313709779,1707600682842,-500.0,0.00039452,30]
[313709780,1707600682852,-585.55,0.00039452,30]
[313709781,1707600682861,-500.0,0.00039452,30]
[313709782,1707600682871,-615.65,0.00039452,30]
[313709783,1707600682881,-500.0,0.00039452,30]
[313709784,1707600682891,-500.0,0.00039452,30]
[313709785,1707600682901,-710.1,0.00039452,30]
[313709786,1707600682911,-500.0,0.00039452,30]
[313709787,1707600682921,-594.62649777,0.00039452,30]
[313709788,1707600682931,-637.4,0.00039452,30]
[313709789,1707600682941,-304.0968099,0.00039452,30]
[313709790,1707600682951,-500.0,0.00039452,30]
[313709791,1707600682960,-500.0,0.00039452,30]
[313709792,1707600682969,-500.0,0.00039452,30]
[313709793,1707600682978,-632.23,0.00039452,30]
[313709794,1707600682987,-500.0,0.00039452,30]
[313709795,1707600682997,-1130.03,0.00039452,30]
[313709796,1707600683006,-2012.7,0.00039452,30]
[313709797,1707600683015,-500.0,0.00039452,30]
[313709798,1707600683024,-676.8,0.00039452,30]
[313709799,1707600683034,-500.0,0.00039452,30]
[313709800,1707600683042,-500.0,0.00039452,30]
[313709801,1707600683052,-1151.47,0.00039452,5]
[313709802,1707600683061,-500.0,0.00039452,30]
[313709803,1707600683071,-500.0,0.00039452,30]
[313709804,1707600683080,-1433.03,0.00039452,30]
[313709805,1707600683089,-500.0,0.00039452,30]
[313709806,1707600683098,-500.0,0.00039452,30]
[313709807,1707600683107,-500.0,0.00039452,30]
[313709808,1707600683117,-996.61,0.00039452,30]
[313709809,1707600683127,-500.0,0.00039452,30]
[313709810,1707600683138,-1675.21,0.00039452,30]
[313709811,1707600683150,-500.0,0.00039452,30]
[313709812,1707600683160,-500.0,0.00039452,30]
[313709813,1707600683169,-500.0,0.00039452,30]
[313709814,1707600683178,-500.0,0.00039452,30]
[313709815,1707600683188,-500.0,0.00039452,30]
[313709816,1707600683197,-607.37,0.00039452,2]
[313709817,1707600683207,-500.0,0.00039452,30]
[313709818,1707600683217,-891.28,0.00039452,30]
[313709819,1707600683227,-786.75,0.00039452,30]
[313709820,1707600683238,-500.0,0.00039452,30]
[313709821,1707600683247,-1992.36,0.00039452,30]
[313709822,1707600683257,-981.14,0.00039452,30]
[313709823,1707600683268,-1948.74,0.00039452,30]
[313709824,1707600683279,-1000.0,0.00039452,120]
[313709825,1707600683289,-500.0,0.00039452,30]
[313709826,1707600683298,-1915.67,0.00039452,30]
[313709827,1707600683308,-500.0,0.00039452,30]
[313709828,1707600683318,-1571.66,0.00039452,30]
[313709829,1707600683329,-500.0,0.00039452,30]
[313709830,1707600683340,-500.0,0.00039452,30]
[313709831,1707600683350,-1107.45,0.00039452,30]
[313709832,1707600683360,-1093.86,0.00039452,30]
[313709833,1707600683369,-832.17,0.00039452,30]
[313709834,1707600683379,-548.12,0.00039452,30]
[313709835,1707600683388,-362.86152323,0.00039452,30]
[313709836,1707600683398,-670.83,0.00039452,30]
[313709837,1707600683407,-500.0,0.00039452,30]
[313709838,1707600683417,-2135.62,0.00039452,30]
[313709839,1707600683426,-576.13,0.00039452,30]
[313709840,1707600683436,-508.53,0.00039452,30]
[313709841,1707600683446,-500.0,0.00039452,30]
[313709842,1707600683455,-2075.8,0.00039452,30]
[313709843,1707600683465,-637.94,0.00039452,30]
[313709844,1707600683474,-500.0,0.00039452,30]
[313709845,1707600683484,-500.0,0.00039452,30]
[313709846,1707600683493,-500.0,0.00039452,30]
[313709847,1707600683503,-500.0,0.00039452,30]
[313709848,1707600683513,-500.0,0.00039452,30]
[313709849,1707600683522,-500.0,0.00039452,30]
[313709850,1707600683531,-1098.0,0.00039452,30]
[313709851,1707600683541,-1381.72,0.00039452,30]
[313709852,1707600683550,-500.0,0.00039452,30]
[313709853,1707600683560,-952.74,0.00039452,30]
[313709854,1707600683571,-500.0,0.00039452,30]
[313709855,1707600683582,-2884.06,0.00039452,30]
[313709856,1707600683591,-500.0,0.00039452,30]
[313709857,1707600683600,-746.11,0.00039452,30]
[313709858,1707600683610,-857.11,0.00039452,30]
[313709859,1707600683619,-500.0,0.00039452,30]
[313709860,1707600683628,-695.59,0.00039452,30]
[313709861,1707600683637,-500.0,0.00039452,30]
[313709862,1707600683646,-500.0,0.00039452,30]
[313709863,1707600683656,-500.0,0.00039452,30]
[313709864,1707600683665,-2276.89,0.00039452,30]
[313709865,1707600683674,-615.5,0.00039452,30]
[313709866,1707600683684,-775.52,0.00039452,30]
[313709867,1707600683693,-1726.49,0.00039452,30]
[313709868,1707600683702,-500.0,0.00039452,30]
[313709869,1707600683712,-500.0,0.00039452,30]
[313709870,1707600683721,-2588.33,0.00039452,30]
[313709871,1707600683730,-500.0,0.00039452,30]
[313709872,1707600683740,-500.0,0.00039452,30]
[313709873,1707600683749,-992.81,0.00039452,30]
[313709874,1707600683759,-735.3,0.00039452,30]
[313709875,1707600683768,-1365.09,0.00039452,30]
[313709876,1707600683777,-722.45,0.00039452,30]
[313709877,1707600683786,-500.0,0.00039452,30]
[313709878,1707600683796,-558.14,0.00039452,30]
[313709879,1707600683805,-720.53,0.00039452,30]
[313709880,1707600683815,-429.29491347,0.00039452,30]
[313709881,1707600683824,-754.42,0.00039452,30]
[313709882,1707600683833,-500.0,0.00039452,30]
[313709883,1707600683842,-500.0,0.00039452,30]
[313709884,1707600683851,-785.13,0.00039452,30]
[313709885,1707600683860,-500.0,0.00039452,30]
[313709886,1707600683871,-563.06,0.00039452,30]
[313709887,1707600683880,-500.0,0.00039452,30]
[313709888,1707600683889,-856.56,0.00039452,30]
[313709889,1707600683899,-1575.36,0.00039452,30]
[313709890,1707600683908,-500.0,0.00039452,30]
[313709891,1707600683918,-879.65,0.00039452,30]
[313709892,1707600683927,-1156.76,0.00039452,30]
[313709893,1707600683936,-1679.59,0.00039452,30]
[313709894,1707600683945,-657.74,0.00039452,30]
[313709895,1707600683954,-597.56,0.00039452,30]
[313709896,1707600683964,-3208.55,0.00039452,30]
[313709897,1707600683974,-500.0,0.00039452,30]
[313709898,1707600683983,-1168.11,0.00039452,30]
[313709899,1707600683992,-679.77,0.00039452,30]
[313709900,1707600684001,-2025.45,0.00039452,30]
[313709901,1707600684010,-926.77,0.00039452,30]
[313709902,1707600684019,-500.0,0.00039452,30]
[313709903,1707600684029,-500.0,0.00039452,30]
[313709904,1707600684038,-500.0,0.00039452,30]
[313709905,1707600684047,-1043.64,0.00039452,30]
[313709906,1707600684056,-552.04,0.00039452,30]
[313709907,1707600684066,-500.0,0.00039452,30]
[313709908,1707600684075,-500.0,0.00039452,30]
[313709909,1707600684084,-500.0,0.00039452,30]
[313709910,1707600684093,-1154.1,0.00039452,30]
[313709911,1707600684102,-172.39694123,0.00039452,30]
[313709912,1707600684111,-500.0,0.00039452,30]
[313709913,1707600684119,-989.31,0.00039452,30]
[313709914,1707600684129,-505.23,0.00039452,30]
[313709915,1707600684138,-2027.94,0.00039452,30]
[313709916,1707600684146,-603.46,0.00039452,30]
[313709917,1707600684156,-500.0,0.00039452,30]
[313709918,1707600684165,-761.12,0.00039452,30]
[313709919,1707600684174,-500.0,0.00039452,30]
[313709920,1707600684184,-2891.76,0.00039452,30]
[313709921,1707600684194,-541.0,0.00039452,30]
[313709922,1707600684203,-500.0,0.00039452,30]
[313709923,1707600684212,-500.0,0.00039452,30]
[313709924,1707600684222,-500.0,0.00039452,30]
[313709925,1707600684236,-500.0,0.00039452,30]
[313709926,1707600684247,-2770.93,0.00039452,30]
[313709927,1707600684256,-500.0,0.00039452,30]
[313709928,1707600684265,-500.0,0.00039452,30]
[313709929,1707600684275,-1243.29,0.00039452,30]
[313709930,1707600684285,-500.0,0.00039452,30]
[313709931,1707600684295,-579.05,0.00039452,30]
[313709932,1707600684305,-500.0,0.00039452,30]
[313709933,1707600684539,-1118.7,0.00039452,30]
[313709934,1707600684550,-500.0,0.00039452,30]
[313709935,1707600684559,-500.0,0.00039452,30]
[313709936,1707600684572,-614.47,0.00039452,30]
[313709937,1707600684581,-500.0,0.00039452,30]
[313709938,1707600684591,-500.0,0.00039452,30]
[313709939,1707600684601,-774.48,0.00039452,30]
[313709940,1707600684612,-833.42,0.00039452,30]
[313709941,1707600684621,-500.0,0.00039452,30]
[313709942,1707600684630,-500.0,0.00039452,30]
[313709943,1707600684640,-507.03597085,0.00039452,30]
[313709944,1707600684649,-1903.16,0.00039452,30]
[313709945,1707600684658,-712.27,0.00039452,30]
[313709946,1707600684667,-500.0,0.00039452,30]
[313709947,1707600684677,-776.19,0.00039452,30]
[313709948,1707600684686,-500.0,0.00039452,30]
[313709949,1707600684696,-500.0,0.00039452,30]
[313709950,1707600684706,-500.0,0.00039452,30]
[313709951,1707600684716,-793.0,0.00039452,30]
[313709952,1707600684726,-819.96,0.00039452,30]
[313709953,1707600684736,-500.0,0.00039452,30]
[313709954,1707600684745,-408.75800548,0.00039452,30]
[313709955,1707600684755,-500.0,0.00039452,30]
[313709956,1707600684765,-835.83,0.00039452,30]
[313709957,1707600684774,-500.0,0.00039452,30]
[313709958,1707600684784,-500.0,0.00039452,30]
[313709959,1707600684793,-500.0,0.00039452,30]
[313709960,1707600684803,-521.81,0.00039452,30]
[313709961,1707600684816,-500.0,0.00039452,30]
[313709962,1707600684825,-500.0,0.00039452,30]
[313709963,1707600684835,-1439.11,0.00039452,30]
[313709964,1707600684845,-666.09,0.00039452,30]
[313709965,1707600684854,-500.0,0.00039452,30]
[313709966,1707600684864,-1762.95,0.00039452,30]
[313709967,1707600684874,-500.0,0.00039452,30]
[313709968,1707600684883,-1507.87,0.00039452,30]
[313709969,1707600684893,-500.0,0.00039452,30]
[313709970,1707600684902,-1220.74,0.00039452,30]
[313709971,1707600684911,-500.0,0.00039452,30]
[313709972,1707600684920,-1071.55,0.00039452,30]
[313709973,1707600684929,-500.0,0.00039452,30]
[313709974,1707600684938,-1158.55,0.00039452,30]
[313709975,1707600684948,-500.0,0.00039452,30]
[313709976,1707600684957,-576.97,0.00039452,30]
[313709977,1707600684966,-500.0,0.00039452,5]
[313709978,1707600684975,-2544.48,0.00039452,30]
[313709979,1707600684985,-891.22,0.00039452,30]
[313709980,1707600684994,-526.32,0.00039452,30]
[313709981,1707600685003,-500.0,0.00039452,30]
[313709982,1707600685013,-1206.55,0.00039452,30]
[313709983,1707600685022,-777.02,0.00039452,30]
[313709984,1707600685032,-816.89,0.00039452,30]
[313709985,1707600685041,-500.0,0.00039452,30]
[313709986,1707600685050,-1195.77,0.00039452,30]
[313709987,1707600685059,-500.0,0.00039452,30]
[313709988,1707600685072,-500.0,0.00039452,30]
[313709989,1707600685081,-714.43,0.00039452,30]
[313709990,1707600685090,-500.0,0.00039452,30]
[313709991,1707600685098,-500.0,0.00039452,30]
[313709992,1707600685108,-2109.4,0.00039452,30]
[313709993,1707600685119,-518.1,0.00039452,30]
[313709994,1707600685135,-500.0,0.00039452,30]
[313709995,1707600685144,-151.0,0.00039452,2]
[313709996,1707600685154,-5000.0,0.000395,4]
[313709997,1707600685163,-3256.16553406,0.000395,2]
[313709998,1707600685172,-300.0,0.000395,2]
[313709999,1707600685182,-150.0,0.00039506,2]
[313710000,1707600685192,-155.01257736,0.00039507,7]
[313710001,1707600685205,-150.0,0.000396,11]
[313710002,1707600685214,-1000.0,0.000396,15]
[313710003,1707600685224,-475.72373406,0.00039626,2]
[313710004,1707600685234,-193.90657654,0.00039626,2]
[313710005,1707600685244,-10000.0,0.0003963,2]
[313710006,1707600685254,-153.81558002,0.0003964,7]
[313710007,1707600685266,-423.4096026,0.00039666,2]
[313710008,1707600685279,-778.08149249,0.00039666,2]
[313710009,1707600685289,-349.53236693,0.00039678,7]
[313710010,1707600685299,-185.24184668,0.0003968,13]
[313710011,1707600685309,-8442.30865505,0.0003968,13]
[313710012,1707600685320,-1249.80328062,0.0003968,9]
[313710013,1707600685331,-6265.55,0.00039683,7]
[313710014,1707600685341,-6265.55,0.00039683,7]
[313710015,1707600685350,-1000.0,0.000397,2]
[313710016,1707600685360,-300.0,0.000397,14]
[313710017,1707600685369,-390.72,0.000397,3]
[313710018,1707600685379,-390.72,0.000397,3]
[313710019,1707600685388,-390.72,0.000397,3]
[313710020,1707600685398,-390.72,0.000397,3]
[313710021,1707600685407,-390.72,0.000397,3]
[313710022,1707600685417,-390.72,0.000397,3]
[313710023,1707600685426,-390.72,0.000397,3]
[313710024,1707600685436,-390.72,0.000397,3]
[313710025,1707600685445,-390.72,0.000397,3]
[313710026,1707600685455,-390.72,0.000397,3]
[313710027,1707600685465,-390.72,0.000397,3]
[313710028,1707600685475,-390.72,0.000397,3]
[313710029,1707600685484,-390.72,0.000397,3]
[313710030,1707600685494,-390.72,0.000397,3]
[313710031,1707600685504,-390.72,0.000397,3]
[313710032,1707600685514,-390.72,0.000397,3]
[313710033,1707600685524,-390.72,0.000397,3]
[313710034,1707600685534,-390.72,0.000397,3]
[313710035,1707600685544,-390.72,0.000397,3]
[313710036,1707600685555,-390.72,0.000397,3]
[313710037,1707600685567,-13513.00584734,0.00039726,3]
[313710038,1707600685579,-500.0,0.00039726,2]
[313710039,1707600685589,-500.0,0.00039726,30]
[313710040,1707600685600,-769.96,0.00039726,2]
[313710041,1707600685611,-500.0,0.00039726,30]
[313710042,1707600685622,-500.0,0.00039726,30]
[313710043,1707600685633,-500.0,0.00039726,30]
[313710044,1707600685643,-500.0,0.00039726,30]
[313710045,1707600685653,-517.07,0.00039726,30]
[313710046,1707600685664,-613.18,0.00039726,30]
[313710047,1707600685675,-500.0,0.00039726,30]
[313710048,1707600685685,-500.0,0.00039726,30]
[313710049,1707600685695,-500.0,0.00039726,30]
[313710050,1707600685705,-503.73,0.00039726,30]
[313710051,1707600685716,-500.0,0.00039726,30]
[313710052,1707600685727,-537.26,0.00039726,30]
[313710053,1707600685737,-563.32,0.00039726,30]
[313710054,1707600685747,-538.08,0.00039726,30]
[313710055,1707600685757,-500.0,0.00039726,30]
[313710056,1707600685767,-827.96,0.00039726,30]
[313710057,1707600685777,-825.22,0.00039726,30]
[313710058,1707600685787,-500.0,0.00039726,30]
[313710059,1707600685796,-1010.79,0.00039726,30]
[313710060,1707600685806,-651.77,0.00039726,30]
[313710061,1707600685818,-500.0,0.00039726,30]
[313710062,1707600685827,-500.0,0.00039726,30]
[313710063,1707600685837,-589.3,0.00039726,30]
[313710064,1707600685846,-725.96,0.00039726,30]
[313710065,1707600685855,-500.0,0.00039726,30]
[313710066,1707600685864,-500.0,0.00039726,30]
[313710067,1707600685873,-500.0,0.00039726,30]
[313710068,1707600685883,-500.0,0.00039726,30]
[313710069,1707600685892,-500.0,0.00039726,30]
[313710070,1707600685903,-500.0,0.00039726,30]
[313710071,1707600685913,-500.0,0.00039726,30]
[313710072,1707600685922,-500.0,0.00039726,30]
[313710073,1707600685931,-509.21,0.00039726,30]
[313710074,1707600685941,-500.0,0.00039726,30]
[313710075,1707600685952,-682.38,0.00039726,30]
[313710076,1707600685962,-500.0,0.00039726,30]
[313710077,1707600685972,-500.0,0.00039726,30]
[313710078,1707600685981,-500.0,0.00039726,30]
[313710079,1707600685991,-634.59,0.00039726,30]
[313710080,1707600686000,-500.0,0.00039726,30]
[313710081,1707600686010,-520.68,0.00039726,30]
[313710082,1707600686019,-500.0,0.00039726,30]
[313710083,1707600686029,-500.0,0.00039726,30]
[313710084,1707600686038,-500.0,0.00039726,30]
[313710085,1707600686047,-500.0,0.00039726,30]
[313710086,1707600686057,-500.0,0.00039726,30]
[313710087,1707600686068,-500.0,0.00039726,30]
[313710088,1707600686077,-500.0,0.00039726,30]
[313710089,1707600686086,-500.0,0.00039726,30]
[313710090,1707600686095,-500.0,0.00039726,30]
[313710091,1707600686104,-500.0,0.00039726,30]
[313710092,1707600686113,-500.0,0.00039726,30]
[313710093,1707600686122,-500.0,0.00039726,30]
[313710094,1707600686131,-500.0,0.00039726,30]
[313710095,1707600686141,-500.0,0.00039726,30]
[313710096,1707600686150,-500.0,0.00039726,30]
[313710097,1707600686161,-1039.53,0.00039726,30]
[313710098,1707600686170,-528.45,0.00039726,30]
[313710099,1707600686180,-802.2,0.00039726,30]
[313710100,1707600686189,-678.93,0.00039726,30]
[313710101,1707600686198,-500.0,0.00039726,30]
[313710102,1707600686209,-511.35,0.00039726,30]
[313710103,1707600686219,-500.0,0.00039726,30]
[313710104,1707600686229,-556.28,0.00039726,30]
[313710105,1707600686243,-500.0,0.00039726,30]
[313710106,1707600686252,-500.0,0.00039726,30]
[313710107,1707600686262,-500.0,0.00039726,30]
[313710108,1707600686271,-500.0,0.00039726,30]
[313710109,1707600686282,-619.38,0.00039726,30]
[313710110,1707600686291,-500.0,0.00039726,30]
[313710111,1707600686300,-500.0,0.00039726,30]
[313710112,1707600686310,-500.0,0.00039726,30]
[313710113,1707600686321,-535.96,0.00039726,30]
[313710114,1707600686330,-500.0,0.00039726,30]
[313710115,1707600686339,-520.36,0.00039726,30]
[313710116,1707600686348,-650.62,0.00039726,30]
[313710117,1707600686358,-500.0,0.00039726,30]
[313710118,1707600686367,-500.0,0.00039726,30]
[313710119,1707600686377,-500.0,0.00039726,30]
[313710120,1707600686386,-500.0,0.00039726,30]
[313710121,1707600686395,-500.0,0.00039726,30]
[313710122,1707600686405,-500.0,0.00039726,30]
[313710123,1707600686414,-500.0,0.00039726,30]
[313710124,1707600686423,-500.0,0.00039726,30]
[313710125,1707600686433,-500.0,0.00039726,30]
[313710126,1707600686442,-500.0,0.00039726,30]
[313710127,1707600686452,-500.0,0.00039726,30]
[313710128,1707600686461,-752.52,0.00039726,30]
[313710129,1707600686470,-500.0,0.00039726,30]
[313710130,1707600686480,-497.18619236,0.00039726,30]
[313710131,1707600686489,-500.0,0.00039726,30]
[313710132,1707600686498,-740.72,0.00039726,30]
[313710133,1707600686507,-520.83795501,0.00039726,30]
[313710134,1707600686517,-651.16,0.00039726,30]
[313710135,1707600686526,-835.86,0.00039726,30]